bitfinex/quotes_ETHUSD_20220115
["timestamp","ask_amount","ask_price","bid_price","bid_amount"]
[1642208991125,3.8667329,3316.8,3316.6,0.00284212]
[1642208991326,3.1127149,3316.8,3316.6,0.00284212]
[1642208991727,1.51007218,3316.8,3316.6,0.00284212]
[1642208992933,1.51007218,3316.8,3316.7,1.54855682]
[1642208993328,1.51007218,3316.8,3316.7,0.00227369]
[1642208993728,1.51007218,3316.8,3316.6,0.00284212]
[1642208993930,1.51007218,3316.8,3316.7,2.58149355]
[1642208994476,1.51007218,3316.8,3316.7,2.58376724]
[1642208994676,1.51007218,3316.8,3316.7,0.00227369]
[1642208995079,1.51007218,3316.8,3316.6,0.00284212]
[1642208995778,1.51007218,3316.8,3316.6,2.58433567]
[1642208996175,1.51007218,3316.8,3316.7,0.00227369]
[1642208996375,1.46007218,3316.8,3316.7,0.00227369]
[1642209004681,2.21410218,3316.8,3316.6,0.00284212]
[1642209004883,1.2116769,3316.7,3316.6,0.00284212]
[1642209005082,1.9657169,3316.7,3316.6,0.00284212]
[1642209005528,1.9157169,3316.7,3316.6,0.00284212]
[1642209008732,2.2157169,3316.7,3316.6,0.00284212]
[1642209009205,2.1157169,3316.7,3316.6,0.00284212]
[1642209009394,0.95404,3316.7,3316.6,0.00284212]
[1642209009794,0.2,3316.7,3316.6,0.00284212]
[1642209010594,1.67732837,3316.7,3316.6,0.00284212]
[1642209011596,2.43137837,3316.7,3316.6,0.00284212]
[1642209014431,0.95405,3316.7,3316.6,0.00284212]
[1642209014830,0.2,3316.7,3316.6,0.00284212]
[1642209015028,1.76007218,3316.8,3316.6,0.00284212]
[1642209016031,1.76007218,3316.8,3316.7,1.12697005]
[1642209016235,1.76007218,3316.8,3316.6,0.00284212]
[1642209016433,1.76007218,3316.8,3316.7,0.00227369]
[1642209016677,1.76007218,3316.8,3316.6,0.00284212]
[1642209017281,2.4992956,3316.7,3316.6,0.00284212]
[1642209017581,1.76007218,3316.8,3316.6,0.00284212]
[1642209020082,1.46007218,3316.8,3316.6,0.00284212]
[1642209020831,2.93362941,3317.1,3316.6,0.00284212]
[1642209021039,3.23362941,3317.1,3316.6,0.00284212]
[1642209021832,1.54611375,3317.0,3316.6,0.00284212]
[1642209022031,2.5190923,3316.9,3316.6,0.00284212]
[1642209022231,2.63141555,3316.9,3316.6,0.00284212]
[1642209023432,3.92629323,3316.9,3316.6,0.00284212]
[1642209024283,1.29487768,3316.9,3316.6,0.00284212]
[1642209024681,2.2619678,3317.0,3316.6,0.00284212]
[1642209024881,0.3,3316.9,3316.6,0.00284212]
[1642209026183,1.032,3317.1,3316.6,0.00284212]
[1642209026384,0.732,3317.1,3316.6,0.00284212]
[1642209026587,0.732,3317.1,3316.7,0.045463]
[1642209026985,0.732,3317.1,3316.8,0.00170527]
[1642209027384,0.732,3317.1,3317.0,1.52100166]
[1642209028933,0.732,3317.1,3317.0,2.58149355]
[1642209029932,0.732,3317.1,3316.9,2.58149355]
[1642209030233,4.354,3317.0,3316.9,2.58149355]
[1642209030634,6.86733847,3317.0,3316.9,2.5826304]
[1642209031235,8.58562856,3317.0,3316.9,2.5826304]
[1642209031434,8.57844396,3317.0,3316.9,2.5826304]
[1642209031688,8.58649521,3317.0,3316.9,0.00113685]
[1642209031884,6.06384854,3317.0,3316.9,0.00113685]
[1642209032185,0.75403,3316.9,3316.6,0.00284212]
[1642209032385,1.5080557,3316.9,3316.6,0.00284212]
[1642209032988,1.5080557,3316.9,3316.5,0.00341054]
[1642209033584,4.00273227,3316.9,3316.5,0.00341054]
[1642209033786,0.75405,3316.7,3316.5,0.00341054]
[1642209033988,3.06990544,3316.6,3316.5,0.00341054]
[1642209034190,4.06990544,3316.6,3316.5,0.00341054]
[1642209034385,4.36990544,3316.6,3316.5,0.00341054]
[1642209035634,10.22818544,3316.6,3316.5,0.00341054]
[1642209035834,10.34338544,3316.6,3316.5,0.00341054]
[1642209036035,5.99498544,3316.6,3316.5,0.00341054]
[1642209036234,5.99818544,3316.6,3316.5,0.00341054]
[1642209036434,6.25,3316.5,3316.4,3.0]
[1642209036635,12.33293257,3316.5,3316.4,3.0]
[1642209036839,13.67228336,3316.5,3316.4,1.05356708]
[1642209037037,0.75433,3316.0,3315.7,1.4857995]
[1642209037237,4.83945366,3315.9,3315.7,1.4857995]
[1642209037436,2.95500946,3315.8,3315.7,1.4857995]
[1642209037636,4.38700946,3315.8,3315.7,1.4857995]
[1642209037835,4.38700946,3315.8,3315.7,1.49034689]
[1642209038036,4.38700946,3315.8,3315.7,0.00454739]
[1642209038436,2.3317567,3315.7,3315.6,0.00511581]
[1642209038637,5.25965925,3315.7,3315.6,0.00511581]
[1642209038837,5.55965925,3315.7,3315.6,0.00511581]
[1642209039042,5.25965925,3315.7,3315.6,0.00511581]
[1642209039294,5.55965925,3315.7,3315.6,0.00511581]
[1642209039498,0.75431,3315.6,3315.1,0.00795793]
[1642209039897,0.75433,3315.5,3315.1,0.00795793]
[1642209040096,0.3,3315.5,3315.1,0.00795793]
[1642209040294,0.75431,3315.6,3315.1,0.00795793]
[1642209040895,0.75431,3315.6,3315.2,0.045463]
[1642209041398,0.75431,3315.6,3315.3,0.00682108]
[1642209042797,0.75432,3315.5,3315.3,0.00682108]
[1642209043036,0.75432,3315.5,3315.3,1.49262058]
[1642209043037,1.05432,3315.5,3315.3,1.49262058]
[1642209043236,0.79390443,3315.6,3315.3,1.49262058]
[1642209043432,1.81057402,3315.7,3315.4,0.00625266]
[1642209043632,2.24257402,3315.7,3315.4,0.00625266]
[1642209044134,2.24257402,3315.7,3315.3,1.49262058]
[1642209044538,2.24257402,3315.7,3315.4,0.00625266]
[1642209045335,2.24257402,3315.7,3315.6,1.51920228]
[1642209045736,2.24257402,3315.7,3315.6,1.52431809]
[1642209045937,1.94257402,3315.7,3315.6,1.52431809]
[1642209046886,1.94257402,3315.7,3315.6,0.00511581]
[1642209047089,4.91479485,3315.7,3315.6,0.00511581]
[1642209047286,5.21479485,3315.7,3315.4,0.00625266]
[1642209047487,1.0,3315.6,3315.4,0.00625266]
[1642209047786,7.13831864,3315.5,3315.4,0.00625266]
[1642209047991,3.70351864,3315.5,3315.4,0.00625266]
[1642209048186,7.28834881,3315.5,3315.4,0.00625266]
[1642209048388,1.54315313,3315.4,3315.2,0.0073895]
[1642209048587,4.05497927,3315.3,3315.2,0.0073895]
[1642209048787,4.35497927,3315.3,3315.2,0.0073895]
[1642209049592,0.75442,3315.2,3315.0,0.00852635]
[1642209049788,4.35497927,3315.3,3315.0,0.00852635]
[1642209049989,1.48644,3315.3,3315.0,0.00852635]
[1642209051033,2.9952155,3315.3,3315.0,0.00852635]
[1642209052035,2.24083,3315.3,3315.0,0.00852635]
[1642209052435,1.94083,3315.3,3315.1,0.045463]
[1642209052835,1.94083,3315.3,3315.2,0.0073895]
[1642209053236,0.432,3315.3,3315.2,0.0073895]
[1642209055485,3.00640902,3315.3,3315.2,0.0073895]
[1642209055683,3.00640902,3315.3,3315.1,0.00795793]
[1642209056683,3.00640902,3315.3,3315.0,0.00852635]
[1642209056884,0.432,3315.3,3315.0,0.00852635]
[1642209057684,0.432,3315.3,3315.1,0.045463]
[1642209057946,0.432,3315.3,3315.2,0.0073895]
[1642209060144,0.432,3315.3,3315.1,0.00795793]
[1642209060343,0.432,3315.3,3315.1,0.05342093]
[1642209060643,0.432,3315.3,3315.2,0.0073895]
[1642209061244,0.432,3315.3,3315.2,3.0073895]
[1642209062084,2.93507058,3315.3,3315.2,3.0073895]
[1642209062691,3.53507058,3315.3,3315.2,3.0073895]
[1642209062890,3.23507058,3315.3,3315.2,3.0073895]
[1642209063086,3.53507058,3315.3,3315.2,3.0073895]
[1642209063786,3.53507058,3315.3,3315.2,5.5893536]
[1642209064388,1.032,3315.3,3315.2,5.5893536]
[1642209064688,0.432,3315.3,3315.2,5.5893536]
[1642209076032,3.32066168,3315.3,3315.2,5.5893536]
[1642209076232,3.32066168,3315.3,3315.2,5.5378536]
[1642209076431,0.732,3315.3,3315.2,5.5378536]
[1642209076684,3.32783469,3315.3,3315.2,5.5378536]
[1642209077086,0.732,3315.3,3315.2,5.5378536]
[1642209077485,3.2219086,3315.3,3315.2,5.5378536]
[1642209077688,0.732,3315.3,3315.2,5.5378536]
[1642209077887,0.432,3315.3,3315.2,5.5378536]
[1642209078491,2.9756911,3315.3,3315.2,5.5378536]
[1642209081143,3.5756911,3315.3,3315.2,5.5378536]
[1642209082839,3.6924911,3315.3,3315.2,5.5378536]
[1642209083039,3.6940911,3315.3,3315.2,5.5378536]
[1642209083645,3.6916911,3315.3,3315.2,5.5378536]
[1642209083839,3.6892911,3315.3,3315.2,5.4378536]
[1642209084041,3.6884911,3315.3,3315.2,5.4378536]
[1642209084285,3.6892911,3315.3,3315.2,5.4378536]
[1642209084684,3.6900911,3315.3,3315.2,5.4378536]
[1642209085085,3.6908911,3315.3,3315.2,5.4378536]
[1642209085286,3.6940911,3315.3,3315.2,5.4378536]
[1642209085687,3.6916911,3315.3,3315.2,5.4378536]
[1642209085888,3.6908911,3315.3,3315.2,5.4378536]
[1642209086087,3.6940911,3315.3,3315.2,5.4378536]
[1642209087946,3.6924911,3315.3,3315.2,5.4378536]
[1642209088132,3.6924911,3315.3,3315.2,2.8558895]
[1642209088333,3.6916911,3315.3,3315.2,2.8558895]
[1642209088837,3.5756911,3315.3,3315.2,2.8558895]
[1642209089034,3.5756911,3315.3,3315.2,5.43801687]
[1642209089636,4.36357009,3315.3,3315.2,5.43801687]
[1642209090237,4.06357009,3315.3,3315.2,5.43801687]
[1642209090739,4.36357009,3315.3,3315.2,5.43801687]
[1642209092689,1.81987899,3315.3,3315.2,5.43801687]
[1642209092887,1.51987899,3315.3,3315.2,5.43801687]
[1642209093488,1.81987899,3315.3,3315.2,5.43801687]
[1642209093689,4.34666072,3315.3,3315.2,5.43801687]
[1642209093994,1.81987899,3315.3,3315.2,5.43801687]
[1642209094387,1.51987899,3315.3,3315.2,5.43801687]
[1642209094587,1.21987899,3315.3,3315.2,5.48347987]
[1642209094788,1.51987899,3315.3,3315.2,5.48347987]
[1642209095446,1.51987899,3315.3,3315.2,5.43801687]
[1642209100186,4.00118803,3315.3,3315.2,5.43801687]
[1642209100587,1.51987899,3315.3,3315.2,5.43801687]
[1642209104237,4.17345236,3315.3,3315.2,5.43801687]
[1642209104838,1.51987899,3315.3,3315.2,5.43801687]
[1642209110746,4.02186296,3315.3,3315.2,5.43801687]
[1642209113150,1.51987899,3315.3,3315.2,5.43801687]
[1642209114189,1.51987899,3315.3,3315.2,5.48347987]
[1642209116192,1.21987899,3315.3,3315.2,5.48347987]
[1642209116794,1.21987899,3315.3,3315.2,5.52894287]
[1642209119642,1.21987899,3315.3,3315.2,5.43801687]
[1642209120348,1.51987899,3315.3,3315.2,5.43801687]
[1642209121889,4.02302702,3315.3,3315.2,5.43801687]
[1642209122490,1.51987899,3315.3,3315.2,5.43801687]
[1642209124190,4.04278645,3315.3,3315.2,5.43801687]
[1642209126241,1.51987899,3315.3,3315.2,5.43801687]
[1642209126641,4.04642218,3315.3,3315.2,5.43801687]
[1642209127842,1.51987899,3315.3,3315.2,5.43801687]
[1642209130092,4.00989221,3315.3,3315.2,5.43801687]
[1642209131394,2.81987899,3315.3,3315.2,5.43801687]
[1642209135362,5.47600738,3315.3,3315.2,5.43801687]
[1642209135963,5.59360738,3315.3,3315.2,5.43801687]
[1642209136264,5.59520738,3315.3,3315.2,5.43801687]
[1642209136692,5.59600738,3315.3,3315.2,5.43801687]
[1642209137194,5.59520738,3315.3,3315.2,5.43801687]
[1642209137394,5.59680738,3315.3,3315.2,5.43801687]
[1642209137594,5.59200738,3315.3,3315.2,5.43801687]
[1642209137797,4.17600738,3315.3,3315.2,5.43801687]
[1642209139498,4.47600738,3315.3,3315.2,5.43801687]
[1642209139699,2.81987899,3315.3,3315.2,5.43801687]
[1642209140742,5.41558795,3315.3,3315.2,5.43801687]
[1642209141143,2.81987899,3315.3,3315.2,5.43801687]
[1642209141550,1.51987899,3315.3,3315.2,5.43801687]
[1642209141742,1.21987899,3315.3,3315.2,5.48347987]
[1642209141943,1.21987899,3315.3,3315.2,5.43801687]
[1642209142142,1.21987899,3315.3,3315.2,5.48347987]
[1642209142342,1.21987899,3315.3,3315.2,5.43801687]
[1642209144047,1.51987899,3315.3,3315.2,5.43801687]
[1642209144296,1.21987899,3315.3,3315.2,5.43801687]
[1642209144696,1.21987899,3315.3,3315.2,5.48347987]
[1642209144896,0.78787899,3315.3,3315.2,5.48347987]
[1642209145096,1.51048275,3315.9,3315.2,5.48347987]
[1642209145297,1.51048275,3315.9,3315.8,0.045463]
[1642209145496,3.37134652,3316.3,3315.8,0.045463]
[1642209145497,0.46367871,3316.3,3315.8,0.045463]
[1642209145698,0.46367871,3316.3,3316.2,0.045463]
[1642209145899,0.00568423,3316.2,3316.1,0.090926]
[1642209146098,0.00568423,3316.2,3316.1,0.045463]
[1642209146499,5.95568423,3316.2,3316.1,0.045463]
[1642209146702,5.95568423,3316.2,3315.8,0.045463]
[1642209146899,2.5840774,3316.1,3315.8,0.045463]
[1642209147098,0.71871581,3316.1,3315.8,0.045463]
[1642209147298,0.00454738,3316.0,3315.8,0.045463]
[1642209147699,0.00397896,3315.9,3315.8,0.045463]
[1642209149347,0.00397896,3315.9,3315.8,3.045463]
[1642209150644,0.00397896,3315.9,3315.8,0.045463]
[1642209152290,0.00397896,3315.9,3315.8,5.940926]
[1642209153693,0.00397896,3315.9,3315.8,0.090926]
[1642209153896,0.00397896,3315.9,3315.7,2.7108995]
[1642209154095,0.00397896,3315.9,3315.7,2.7563625]
[1642209154295,1.23833076,3316.2,3315.7,2.7563625]
[1642209154296,1.23833076,3316.2,3315.8,2.795463]
[1642209154598,0.00511581,3316.1,3315.9,0.136389]
[1642209154796,0.00511581,3316.1,3316.0,0.045463]
[1642209154994,1.23833076,3316.2,3316.0,0.045463]
[1642209155196,1.23833076,3316.2,3316.1,0.045463]
[1642209155456,1.23833076,3316.2,3316.1,0.090926]
[1642209155643,1.24401499,3316.2,3316.1,0.090926]
[1642209156645,0.00568423,3316.2,3316.1,0.136389]
[1642209158646,1.44416142,3316.2,3316.1,0.136389]
[1642209159794,0.00568423,3316.2,3316.1,0.136389]
[1642209162197,0.00568423,3316.2,3316.1,7.386389]
[1642209162500,0.00568423,3316.2,3316.1,11.10658991]
[1642209162953,8.423e-05,3316.2,3316.1,14.10658991]
[1642209163145,0.45284469,3317.7,3316.3,8.74626002]
[1642209163343,1.50979859,3317.4,3316.9,0.045463]
[1642209163545,0.45284469,3317.7,3317.3,0.045463]
[1642209163742,0.45284469,3317.7,3317.5,0.090926]
[1642209164144,1.56024297,3317.6,3317.5,0.090926]
[1642209164343,1.56024297,3317.6,3317.5,0.045463]
[1642209164843,1.56024297,3317.6,3317.5,0.090926]
[1642209165045,1.56024297,3317.6,3317.5,0.136389]
[1642209165946,1.56024297,3317.6,3317.5,2.71719703]
[1642209166145,1.56024297,3317.6,3317.5,2.58080803]
[1642209166546,1.56024297,3317.6,3317.5,2.62627103]
[1642209166996,0.120875,3317.6,3317.5,2.62627103]
[1642209170847,0.120875,3317.6,3317.5,2.58080803]
[1642209171047,0.120875,3317.6,3317.5,2.62627103]
[1642209171649,0.120875,3317.6,3317.5,0.045463]
[1642209172753,0.120875,3317.6,3317.5,2.62627103]
[1642209172950,0.120875,3317.6,3317.5,5.62627103]
[1642209175593,0.75374,3318.2,3317.5,5.62627103]
[1642209175790,0.75374,3318.2,3317.9,0.045463]
[1642209175990,0.75374,3318.2,3317.5,5.62627103]
[1642209175991,0.01080005,3318.1,3317.5,5.62627103]
[1642209176191,0.01080005,3318.1,3317.9,0.045463]
[1642209176392,0.03555087,3318.3,3318.0,0.045463]
[1642209176592,1.19904842,3318.3,3318.2,0.045463]
[1642209176993,1.49904842,3318.3,3318.2,0.045463]
[1642209177393,1.49904842,3318.3,3317.5,3.045463]
[1642209177597,1.49904842,3318.3,3317.7,0.045463]
[1642209177793,0.01136847,3318.2,3317.7,0.045463]
[1642209178247,0.01080005,3318.1,3317.7,0.045463]
[1642209178646,0.01023162,3318.0,3317.7,0.045463]
[1642209178848,0.01023162,3318.0,3317.8,2.58033153]
[1642209179046,0.0096632,3317.9,3317.8,2.58033153]
[1642209183092,0.0096632,3317.9,3317.8,2.62579453]
[1642209184094,0.0096632,3317.9,3317.8,2.58033153]
[1642209184295,0.7634632,3317.9,3317.8,2.58033153]
[1642209184895,0.7634632,3317.9,3317.6,2.58033153]
[1642209185195,0.00909478,3317.8,3317.6,2.58033153]
[1642209185643,0.00852635,3317.7,3317.6,2.58033153]
[1642209188547,0.00852635,3317.7,3317.6,2.62579453]
[1642209188846,0.00852635,3317.7,3317.6,2.58033153]
[1642209189195,0.00852635,3317.7,3317.6,2.62579453]
[1642209189896,0.00852635,3317.7,3317.6,2.58033153]
[1642209190294,0.00852635,3317.7,3317.6,2.62579453]
[1642209191197,0.00852635,3317.7,3317.6,2.58033153]
[1642209192196,0.00852635,3317.7,3317.6,2.62579453]
[1642209192397,0.00852635,3317.7,3317.6,2.58033153]
[1642209193245,0.00852635,3317.7,3317.6,2.58698871]
[1642209194643,0.44052635,3317.7,3317.6,2.58698871]
[1642209194845,3.16880374,3317.7,3317.6,2.58378871]
[1642209195044,3.28640374,3317.7,3317.6,2.58378871]
[1642209195244,3.16880374,3317.7,3317.6,2.58378871]
[1642209195443,3.28240374,3317.7,3317.6,2.58378871]
[1642209195648,0.55332635,3317.7,3317.6,0.00345718]
[1642209195950,0.44052635,3317.7,3317.6,0.04892018]
[1642209196144,0.00852635,3317.7,3317.6,0.04892018]
[1642209196794,0.00852635,3317.7,3317.6,2.62933573]
[1642209198196,0.00852635,3317.7,3317.6,2.63233573]
[1642209203045,0.00852635,3317.7,3317.6,2.58687273]
[1642209206093,0.00852635,3317.7,3317.6,2.63233573]
[1642209207094,0.00852635,3317.7,3317.6,2.58687273]
[1642209207956,0.00852635,3317.7,3317.6,2.53687273]
[1642209208151,0.00852635,3317.7,3317.6,2.54312991]
[1642209215950,0.3,3318.0,3317.6,2.54312991]
[1642209216149,4.30991146,3318.2,3317.6,2.54312991]
[1642209216349,0.0096632,3317.9,3317.6,2.54312991]
[1642209216749,0.00909478,3317.8,3317.6,2.54312991]
[1642209217051,0.00852635,3317.7,3317.6,0.00625718]
[1642209217651,0.00852635,3317.7,3317.6,0.05172018]
[1642209218650,0.00852635,3317.7,3317.6,0.00625718]
[1642209222395,0.00852635,3317.7,3317.6,0.05172018]
[1642209224341,0.00852635,3317.7,3317.6,0.00625718]
[1642209224540,1.01232635,3317.9,3317.6,0.00625718]
[1642209224743,2.46834486,3317.8,3317.6,0.00625718]
[1642209234049,2.46834486,3317.8,3317.7,2.58042696]
[1642209238145,2.46834486,3317.8,3317.7,2.58321684]
[1642209238545,1.01232635,3317.9,3317.7,2.58321684]
[1642209238946,2.2966227,3318.2,3317.8,0.045463]
[1642209238947,3.0503727,3318.2,3317.8,0.045463]
[1642209239148,2.2966227,3318.2,3318.1,0.045463]
[1642209240553,2.2966227,3318.2,3318.0,0.045463]
[1642209240851,2.2966227,3318.2,3317.9,0.045463]
[1642209240852,0.0022737,3318.1,3317.9,0.045463]
[1642209241352,0.00170527,3318.0,3317.9,0.045463]
[1642209241551,0.00170527,3318.0,3317.8,0.045463]
[1642209242001,2.2966227,3318.2,3317.8,0.045463]
[1642209242002,0.00113685,3317.9,3317.8,0.045463]
[1642209244206,0.00113685,3317.9,3317.8,0.090926]
[1642209246150,0.00113685,3317.9,3317.8,0.045463]
[1642209246350,0.00113685,3317.9,3317.8,0.090926]
[1642209247749,0.00113685,3317.9,3317.8,0.045463]
[1642209248153,0.00113685,3317.9,3317.8,0.00544322]
[1642209248752,0.00113685,3317.9,3317.8,0.05090622]
[1642209249199,0.00113685,3317.9,3317.8,0.00544322]
[1642209250099,2.49886147,3317.9,3317.8,0.00544322]
[1642209250501,2.599635,3317.9,3317.8,0.00544322]
[1642209253350,0.00113685,3317.9,3317.8,0.00544322]
[1642209255447,0.00113685,3317.9,3317.8,0.05090622]
[1642209256700,0.00113685,3317.9,3317.8,0.14183222]
[1642209256897,0.00113685,3317.9,3317.8,0.09636922]
[1642209257098,0.00113685,3317.9,3317.8,0.14183222]
[1642209257298,0.00113685,3317.9,3317.8,0.09636922]
[1642209257499,0.00113685,3317.9,3317.8,2.72179199]
[1642209261451,0.00113685,3317.9,3317.8,2.58540299]
[1642209261652,0.00113685,3317.9,3317.8,2.67632899]
[1642209261853,0.00113685,3317.9,3317.8,2.63086599]
[1642209262252,0.00113685,3317.9,3317.8,2.72179199]
[1642209262855,0.00113685,3317.9,3317.8,2.63086599]
[1642209263053,0.00113685,3317.9,3317.8,2.67632899]
[1642209263254,0.00113685,3317.9,3317.8,2.63086599]
[1642209263454,0.00113685,3317.9,3317.8,2.67632899]
[1642209263657,0.00113685,3317.9,3317.8,2.72179199]
[1642209266112,0.00113685,3317.9,3317.8,2.67632899]
[1642209268051,0.00113685,3317.9,3317.8,2.63086599]
[1642209270652,0.00113685,3317.9,3317.8,2.58540299]
[1642209271700,0.00113685,3317.9,3317.8,2.63086599]
[1642209272300,1.97293352,3318.2,3317.8,2.63086599]
[1642209272701,0.0022737,3318.1,3317.8,2.63086599]
[1642209273000,0.00170527,3318.0,3317.8,2.63086599]
[1642209273200,0.00170527,3318.0,3317.9,2.57995977]
[1642209273402,1.97293352,3318.2,3317.9,2.57995977]
[1642209273801,0.0022737,3318.1,3317.9,2.57995977]
[1642209274202,0.00170527,3318.0,3317.9,2.57995977]
[1642209278059,0.00170527,3318.0,3317.9,2.58274647]
[1642209278657,2.49330031,3318.0,3317.9,2.58274647]
[1642209282198,0.00170527,3318.0,3317.9,2.58274647]
[1642209282597,0.00170527,3318.0,3317.9,2.62820947]
[1642209289018,0.00170527,3318.0,3317.9,2.58274647]
[1642209289413,2.62054406,3318.0,3317.9,2.58274647]
[1642209290314,0.00170527,3318.0,3317.9,2.58274647]
[1642209292255,0.00170527,3318.0,3317.9,2.62820947]
[1642209293056,2.64204588,3318.0,3317.9,2.58274647]
[1642209296305,2.75644588,3318.0,3317.9,2.58274647]
[1642209296505,2.64204588,3318.0,3317.9,2.58274647]
[1642209297514,2.94204588,3318.0,3317.9,2.58274647]
[1642209297707,2.64204588,3318.0,3317.9,2.58274647]
[1642209298355,0.00170527,3318.0,3317.9,2.62820947]
[1642209301276,0.00170527,3318.0,3317.9,2.58274647]
[1642209302202,0.75552527,3318.0,3317.9,2.58274647]
[1642209302605,0.75552527,3318.0,3317.9,2.62820947]
[1642209303402,0.00170527,3318.0,3317.9,2.62820947]
[1642209304605,0.78718352,3318.2,3317.9,2.58274647]
[1642209305005,0.0022737,3318.1,3317.9,2.58274647]
[1642209305208,0.0022737,3318.1,3318.0,0.045463]
[1642209305461,0.75377,3318.1,3318.0,0.090926]
[1642209305651,0.78718352,3318.2,3318.0,0.090926]
[1642209305851,0.78718352,3318.2,3318.1,0.045463]
[1642209306253,0.79002564,3318.2,3318.1,0.045463]
[1642209306854,0.79002564,3318.2,3318.1,2.62542277]
[1642209308256,0.79002564,3318.2,3318.1,2.62820629]
[1642209308455,0.79002564,3318.2,3318.1,2.58274329]
[1642209309505,1.71443678,3318.2,3318.1,2.58274329]
[1642209309705,2.63884792,3318.2,3318.1,2.58274329]
[1642209310105,2.63884792,3318.2,3318.1,3.97268223]
[1642209311507,2.63884792,3318.2,3318.1,2.58274329]
[1642209312960,5.14761062,3318.2,3318.1,2.58274329]
[1642209314558,5.44761062,3318.2,3318.1,2.58274329]
[1642209314759,5.87961062,3318.2,3318.1,2.58274329]
[1642209314959,5.87961062,3318.2,3318.1,0.00278352]
[1642209315458,5.99561062,3318.2,3318.1,0.00278352]
[1642209315662,5.99481062,3318.2,3318.1,0.00278352]
[1642209316159,0.75393,3317.8,3317.5,3.0]
[1642209316358,4.8673053,3317.7,3317.5,3.0]
[1642209316558,2.67903318,3317.6,3317.5,3.0]
[1642209316808,3.60344432,3317.6,3317.5,3.0]
[1642209317009,4.52785546,3317.6,3317.5,3.00113684]
[1642209317208,4.52785546,3317.6,3317.5,5.58156052]
[1642209317409,6.0380236,3317.6,3317.5,5.58156052]
[1642209318213,6.0380236,3317.6,3317.5,5.58631615]
[1642209320214,3.35899042,3317.6,3317.5,5.58631615]
[1642209320459,3.79099042,3317.6,3317.5,5.58631615]
[1642209320757,6.32467953,3317.6,3317.5,5.58631615]
[1642209323258,6.32467953,3317.6,3317.5,5.5840152]
[1642209325507,6.62467953,3317.6,3317.5,5.5840152]
[1642209326305,6.92467953,3317.6,3317.5,5.5840152]
[1642209326505,8.04867953,3317.6,3317.5,5.5840152]
[1642209326705,8.05187953,3317.6,3317.5,5.5840152]
[1642209327106,8.05267953,3317.6,3317.5,5.5840152]
[1642209327306,8.05187953,3317.6,3317.5,5.5840152]
[1642209327506,8.05267953,3317.6,3317.5,5.5840152]
[1642209327969,8.05347953,3317.6,3317.5,5.5840152]
[1642209328359,8.05267953,3317.6,3317.5,5.5840152]
[1642209328566,8.05187953,3317.6,3317.5,5.5840152]
[1642209328960,8.05267953,3317.6,3317.5,5.5840152]
[1642209329160,8.05107953,3317.6,3317.5,5.5840152]
[1642209329760,8.05027953,3317.6,3317.5,5.5840152]
[1642209329960,6.75107953,3317.6,3317.5,5.5840152]
[1642209330261,6.74067953,3317.6,3317.5,3.04905452]
[1642209330460,6.62467953,3317.6,3317.5,3.00359152]
[1642209330661,6.32467953,3317.6,3317.5,3.00359152]
[1642209331064,6.32467953,3317.6,3317.5,5.58419381]
[1642209331462,2.28082228,3317.6,3317.5,5.62965681]
[1642209332306,1.84882228,3317.6,3317.5,5.62965681]
[1642209332706,1.84882228,3317.6,3317.5,6.92648215]
[1642209335855,1.84882228,3317.6,3317.5,5.62965681]
[1642209336859,1.84882228,3317.6,3317.5,5.58419381]
[1642209338067,1.84882228,3317.6,3317.5,5.62965681]
[1642209343357,1.84882228,3317.6,3317.5,5.58419381]
[1642209343558,4.82271787,3317.6,3317.5,5.58419381]
[1642209343857,6.25471787,3317.6,3317.5,5.58419381]
[1642209344258,6.37071787,3317.6,3317.5,5.58419381]
[1642209344457,6.25471787,3317.6,3317.5,5.58419381]
[1642209345661,7.00866787,3317.6,3317.5,5.58419381]
[1642209345859,7.12546787,3317.6,3317.5,5.58419381]
[1642209346259,7.13186787,3317.6,3317.5,5.58419381]
[1642209346461,7.13266787,3317.6,3317.5,5.58419381]
[1642209346716,7.08927818,3317.6,3317.5,5.58419381]
[1642209346914,7.39247818,3317.6,3317.5,5.58305697]
[1642209347114,7.39407818,3317.6,3317.5,5.58305697]
[1642209347315,7.39327818,3317.6,3317.5,5.58305697]
[1642209347515,4.76277228,3317.6,3317.5,5.58305697]
[1642209347715,4.75877228,3317.6,3317.5,5.58305697]
[1642209347915,4.75797228,3317.6,3317.5,5.58305697]
[1642209348115,3.15877228,3317.6,3317.5,3.00245468]
[1642209348316,3.15477228,3317.6,3317.5,3.00245468]
[1642209348515,4.44917228,3317.6,3317.5,3.00245468]
[1642209348717,4.45157228,3317.6,3317.5,3.00245468]
[1642209349420,4.45237228,3317.6,3317.5,3.00245468]
[1642209349619,4.45317228,3317.6,3317.5,5.58297445]
[1642209349818,4.45397228,3317.6,3317.5,5.58297445]
[1642209350018,4.45237228,3317.6,3317.5,5.58297445]
[1642209350319,4.45237228,3317.6,3317.5,3.00245468]
[1642209350569,4.45317228,3317.6,3317.5,3.00245468]
[1642209350767,4.45397228,3317.6,3317.5,3.00245468]
[1642209350966,4.45557228,3317.6,3317.5,3.00245468]
[1642209351166,4.45477228,3317.6,3317.5,3.00245468]
[1642209351365,4.45397228,3317.6,3317.5,3.00245468]
[1642209351566,4.45477228,3317.6,3317.5,3.00245468]
[1642209351768,4.45637228,3317.6,3317.5,3.00245468]
[1642209352166,4.45477228,3317.6,3317.5,3.00245468]
[1642209352366,4.45557228,3317.6,3317.5,3.00245468]
[1642209353168,4.45637228,3317.6,3317.5,3.00245468]
[1642209353369,4.45877228,3317.6,3317.5,3.00245468]
[1642209353570,4.71677228,3317.6,3317.5,3.00245468]
[1642209353771,7.35,3317.5,3317.4,0.0023019]
[1642209353970,11.45454508,3317.5,3317.4,0.0023019]
[1642209354211,11.45454508,3317.5,3317.4,0.00400717]
[1642209354212,12.58494508,3317.5,3317.4,0.00400717]
[1642209354413,15.56221652,3317.5,3316.5,3.91865406]
[1642209354619,7.367073,3316.6,3316.5,3.87319106]
[1642209354913,7.367073,3316.6,3315.9,3.00411779]
[1642209354914,7.25,3316.4,3315.9,3.00411779]
[1642209355113,0.432,3316.3,3315.9,3.00411779]
[1642209355313,5.59387146,3316.2,3315.9,3.00411779]
[1642209355512,7.44747146,3316.2,3315.6,2.22869925]
[1642209355712,7.44907146,3316.2,3316.1,3.0073895]
[1642209355911,7.47517048,3316.2,3316.1,3.0073895]
[1642209356113,9.60797048,3316.2,3316.1,3.0073895]
[1642209356314,9.60957048,3316.2,3316.1,3.0073895]
[1642209356515,9.61357048,3316.2,3316.1,3.0073895]
[1642209356714,1.5087799,3315.9,3315.6,2.22869925]
[1642209356915,1.19031561,3315.7,3315.6,2.22869925]
[1642209357120,5.70943033,3315.7,3315.3,2.22869925]
[1642209357319,5.394,3315.5,3315.0,2.26559552]
[1642209357517,5.694,3315.5,3315.4,0.00397897]
[1642209357718,6.897613,3315.5,3315.4,0.00397897]